fUST/lending_fUST_20241217
["ID","MTS","AMOUNT","RATE_DAILY","PERIOD"]
[345590807,1734372644832,-168.0,0.00027945,7]
[345590809,1734372644842,-500.0,0.00027945,7]
[345590812,1734372644854,-500.0,0.00027945,7]
[345590814,1734372644864,-1369.67,0.00027945,7]
[345590816,1734372644873,-643.85,0.00027945,7]
[345590818,1734372644883,-500.0,0.00027945,7]
[345590820,1734372644893,-500.0,0.00027945,7]
[345590822,1734372644903,-363.05997072,0.00027945,7]
[345590824,1734372644918,-2092.07,0.00027945,2]
[345590826,1734372644928,-650.33,0.00027945,7]
[345590828,1734372644938,-500.0,0.00027945,7]
[345590830,1734372644948,-662.07,0.00027945,7]
[345590832,1734372644958,-500.0,0.00027945,7]
[345590834,1734372644967,-856.23,0.00027945,7]
[345590836,1734372644977,-901.58,0.00027945,7]
[345590838,1734372644987,-500.0,0.00027945,7]
[345590840,1734372644998,-500.0,0.00027945,7]
[345590842,1734372645008,-500.0,0.00027945,7]
[345590844,1734372645018,-529.44,0.00027945,7]
[345590846,1734372645028,-1112.31,0.00027945,7]
[345590848,1734372645038,-721.96,0.00027945,7]
[345590850,1734372645048,-521.25,0.00027945,7]
[345590852,1734372645057,-167.25295621,0.00027945,7]
[345590855,1734372645068,-500.0,0.00027945,7]
[345590857,1734372645078,-500.0,0.00027945,7]
[345590859,1734372645088,-500.0,0.00027945,7]
[345590861,1734372645098,-500.0,0.00027945,7]
[345590863,1734372645108,-500.0,0.00027945,7]
[345590865,1734372645118,-2238.47,0.00027945,7]
[345590867,1734372645128,-500.0,0.00027945,7]
[345590869,1734372645138,-500.0,0.00027945,7]
[345590871,1734372645148,-432.46744081,0.00027945,7]
[345590873,1734372645164,-741.69,0.00027945,7]
[345590875,1734372645174,-1000.0,0.00027945,2]
[345590877,1734372645184,-500.0,0.00027945,7]
[345590879,1734372645193,-638.63,0.00027945,7]
[345590881,1734372645203,-500.0,0.00027945,7]
[345590883,1734372645212,-714.0,0.00027945,7]
[345590885,1734372645222,-963.83,0.00027945,7]
[345590887,1734372645233,-500.0,0.00027945,7]
[345590889,1734372645244,-500.0,0.00027945,2]
[345590891,1734372645253,-500.0,0.00027945,7]
[345590910,1734372645263,-528.98,0.00027945,7]
[345590913,1734372645447,-500.0,0.00027945,7]
[345590915,1734372645457,-1230.95,0.00027945,7]
[345590917,1734372645467,-500.0,0.00027945,7]
[345590919,1734372645477,-500.0,0.00027945,7]
[345590921,1734372645486,-500.0,0.00027945,7]
[345590923,1734372645495,-500.0,0.00027945,7]
[345590925,1734372645505,-500.0,0.00027945,7]
[345590927,1734372645515,-776.19,0.00027945,7]
[345590929,1734372645525,-662.08,0.00027945,7]
[345590931,1734372645534,-500.0,0.00027945,7]
[345590933,1734372645544,-500.0,0.00027945,7]
[345590935,1734372645554,-500.0,0.00027945,7]
[345590937,1734372645564,-500.0,0.00027945,7]
[345590939,1734372645573,-620.58380604,0.00027945,7]
[345590941,1734372645584,-500.0,0.00027945,7]
[345590943,1734372645594,-471.87993856,0.00027945,7]
[345590946,1734372645604,-500.0,0.00027945,7]
[345590947,1734372645613,-525.26960075,0.00027945,7]
[345590949,1734372645622,-500.0,0.00027945,7]
[345590951,1734372645632,-500.0,0.00027945,7]
[345590953,1734372645641,-500.0,0.00027945,7]
[345590955,1734372645650,-330.20693358,0.00027945,7]
[345590958,1734372645664,-500.0,0.00027945,7]
[345590960,1734372645674,-500.0,0.00027945,7]
[345590962,1734372645684,-500.0,0.00027945,7]
[345590964,1734372645694,-500.0,0.00027945,7]
[345590966,1734372645704,-500.0,0.00027945,7]
[345590968,1734372645713,-500.0,0.00027945,7]
[345590971,1734372645723,-1777.27,0.00027945,7]
[345590974,1734372645733,-500.0,0.00027945,7]
[345590978,1734372645742,-10683.0,0.00027945,7]
[345590980,1734372645751,-571.47,0.00027945,7]
[345590982,1734372645760,-500.0,0.00027945,7]
[345590984,1734372645770,-703.12,0.00027945,7]
[345590986,1734372645779,-908.02,0.00027945,7]
[345590988,1734372645789,-500.0,0.00027945,7]
[345590990,1734372645799,-14178.31,0.00027945,7]
[345590992,1734372645808,-526.47,0.00027945,7]
[345590994,1734372645818,-9780.89,0.00027945,7]
[345590996,1734372645829,-1725.47,0.00027945,7]
[345590998,1734372645838,-635.11,0.00027945,7]
[345591000,1734372645848,-500.0,0.00027945,7]
[345591002,1734372645857,-1114.95,0.00027945,7]
[345591004,1734372645867,-500.0,0.00027945,7]
[345591006,1734372645877,-9513.42,0.00027945,7]
[345591008,1734372645887,-2119.43,0.00027945,7]
[345591010,1734372645897,-500.0,0.00027945,7]
[345591012,1734372645910,-788.46,0.00027945,7]
[345591014,1734372645920,-508.24503682,0.00027945,7]
[345591016,1734372645930,-169.87098693,0.00027945,7]
[345591018,1734372645939,-500.0,0.00027945,7]
[345591020,1734372645949,-2839.01,0.00027945,5]
[345591022,1734372645959,-500.0,0.00027945,7]
[345591024,1734372645970,-500.0,0.00027945,7]
[345591026,1734372645980,-500.0,0.00027945,7]
[345591028,1734372645989,-500.0,0.00027945,7]
[345591031,1734372646000,-500.0,0.00027945,7]
[345591032,1734372646010,-515.19797652,0.00027945,7]
[345591035,1734372646020,-1556.73,0.00027945,7]
[345591036,1734372646030,-500.0,0.00027945,7]
[345591039,1734372646040,-500.0,0.00027945,7]
[345591041,1734372646050,-500.0,0.00027945,7]
[345591043,1734372646061,-633.59,0.00027945,7]
[345591045,1734372646072,-53361.51,0.00027945,7]
[345591047,1734372646082,-500.0,0.00027945,7]
[345591049,1734372646092,-506.61842123,0.00027945,7]
[345591051,1734372646102,-922.34,0.00027945,7]
[345591053,1734372646111,-500.0,0.00027945,7]
[345591055,1734372646121,-1341.32,0.00027945,7]
[345591057,1734372646131,-500.0,0.00027945,7]
[345591059,1734372646142,-308.49674049,0.00027945,7]
[345591061,1734372646152,-799.14,0.00027945,7]
[345591063,1734372646167,-2469.95,0.00027945,7]
[345591065,1734372646178,-500.0,0.00027945,7]
[345591067,1734372646188,-599.41,0.00027945,7]
[345591069,1734372646198,-647.1,0.00027945,2]
[345591071,1734372646210,-759.45,0.00027945,7]
[345591073,1734372646219,-500.0,0.00027945,7]
[345591076,1734372646229,-2473.15,0.00027945,7]
[345591077,1734372646240,-5635.01,0.00027945,7]
[345591079,1734372646250,-500.0,0.00027945,7]
[345591082,1734372646260,-4323.76,0.00027945,7]
[345591084,1734372646269,-500.0,0.00027945,7]
[345591086,1734372646279,-500.0,0.00027945,7]
[345591088,1734372646288,-500.0,0.00027945,7]
[345591090,1734372646298,-500.0,0.00027945,7]
[345591092,1734372646307,-175.76925736,0.00027945,7]
[345591125,1734372646598,-2190.6,0.00027945,7]
[345591127,1734372646610,-447.81213672,0.00027945,7]
[345591130,1734372646624,-494.43860592,0.00027945,7]
[345591132,1734372646634,-500.0,0.00027945,7]
[345591134,1734372646644,-500.0,0.00027945,7]
[345591136,1734372646655,-500.0,0.00027945,7]
[345591138,1734372646664,-720.18,0.00027945,7]
[345591140,1734372646675,-500.0,0.00027945,7]
[345591142,1734372646685,-1337.7,0.00027945,7]
[345591144,1734372646695,-606.61,0.00027945,7]
[345591146,1734372646705,-500.0,0.00027945,7]
[345591148,1734372646715,-86.09625892,0.00027945,7]
[345591150,1734372646728,-379.99308121,0.00027945,7]
[345591154,1734372646750,-500.0,0.00027397,7]
[345591156,1734372646761,-2120.81065987,0.00027945,7]
[345591158,1734372646771,-500.0,0.00027945,7]
[345591160,1734372646781,-300.68383926,0.00027945,7]
[345591162,1734372646791,-2134.39,0.00027945,7]
[345591164,1734372646803,-500.0,0.00027945,7]
[345591166,1734372646813,-500.0,0.00027945,7]
[345591168,1734372646823,-1769.02671544,0.00027945,7]
[345591170,1734372646836,-303.84010855,0.00027945,7]
[345591180,1734372647031,-601.80317601,0.00027945,7]
[345591182,1734372647042,-661.58,0.00027945,7]
[345591184,1734372647052,-500.0,0.00027945,7]
[345591186,1734372647061,-500.0,0.00027945,7]
[345591188,1734372647071,-1070.36,0.00027945,7]
[345591190,1734372647081,-500.0,0.00027945,7]
[345591192,1734372647091,-500.0,0.00027945,7]
[345591194,1734372647101,-500.0,0.00027945,7]
[345591196,1734372647111,-500.0,0.00027945,7]
[345591198,1734372647121,-500.0,0.00027945,7]
[345591200,1734372647130,-821.56,0.00027945,7]
[345591203,1734372647140,-735.76,0.00027945,7]
[345591205,1734372647150,-1459.24,0.00027945,7]
[345591207,1734372647161,-500.0,0.00027945,7]
[345591209,1734372647172,-150.1,0.00027999,2]
[345591211,1734372647181,-355.9209021,0.00027999,2]
[345591213,1734372647191,-1000.0,0.00028,28]
[345591215,1734372647203,-151.0,0.00028,7]
[345591217,1734372647212,-6908.82865623,0.00028,2]
[345591237,1734372647400,-268.77703896,0.00027397,7]
[345591239,1734372647416,-500.0,0.00027397,7]
[345591241,1734372647425,-411.62151465,0.00027397,7]
[345591243,1734372647435,-500.0,0.00027671,7]
[345591245,1734372647444,-1594.0,0.00027858,15]
[345591247,1734372647454,-500.0,0.00027945,7]
[345591249,1734372647467,-6988.72134377,0.00028,2]
[345591251,1734372647476,-224.259591,0.00028,7]
[345591253,1734372647486,-224.259591,0.00028,7]
[345591255,1734372647497,-224.259591,0.00028,7]
[345591257,1734372647508,-224.259591,0.00028,7]
[345591259,1734372647518,-151.0,0.00028,7]
[345591261,1734372647528,-151.0,0.00028,7]
[345591263,1734372647537,-151.0,0.00028,7]
[345591266,1734372647547,-151.0,0.00028,7]
[345591285,1734372647557,-151.0,0.00028,7]
[345591287,1734372647736,-151.0,0.00028,7]
[345591289,1734372647747,-151.0,0.00028,7]
[345591291,1734372647756,-151.0,0.00028,7]
[345591293,1734372647766,-151.0,0.00028,7]
[345591295,1734372647775,-151.0,0.00028,7]
[345591297,1734372647784,-151.0,0.00028,7]
[345591299,1734372647794,-151.0,0.00028,7]
[345591302,1734372647803,-151.0,0.00028,7]
[345591304,1734372647813,-162.7,0.00028,2]
[345591306,1734372647822,-151.0,0.00028,7]
[345591308,1734372647832,-151.0,0.00028,7]
[345591310,1734372647841,-362.508019,0.00028,7]
[345591312,1734372647852,-362.508019,0.00028,7]
[345591314,1734372647861,-298.44504,0.00028,7]
[345591316,1734372647871,-298.44504,0.00028,7]
[345591318,1734372647880,-151.0,0.00028,7]
[345591320,1734372647890,-151.0,0.00028,7]
[345591322,1734372647899,-620.405297,0.00028,7]
[345591324,1734372647911,-620.405297,0.00028,7]
[345591326,1734372647921,-25229.91067899,0.00028,2]
[345591368,1734372904924,1290.88,0.0002556,120]
[345591372,1734373480340,953.43318352,0.0002556,120]
[345591383,1734373508933,161.24932,0.00013973,2]
[345591390,1734373666642,950.0,0.0002556,120]
[345591406,1734373715843,950.0,0.0002556,120]
[345591625,1734373836496,-175.0,0.00022,2]
[345591627,1734373836509,-210.66568821,0.0002201,16]
[345591629,1734373836519,-161.24932,0.00022174,2]
[345591632,1734373836528,-7104.37468284,0.00022466,6]
[345591633,1734373836543,-194.75827075,0.00024733,2]
[345591634,1734373836554,-175.213979,0.00024833,2]
[345591635,1734373836563,-194.75827075,0.000249,2]
[345591636,1734373836573,-300.0,0.00024999,2]
[345591637,1734373836584,-300.0,0.00024999,2]
[345591638,1734373836594,-21056.32327864,0.00025,7]
[345591639,1734373836604,-1553.337,0.00025,2]
[345591640,1734373836614,-290.917716,0.00025532,2]
[345591641,1734373836624,-194.412945,0.00025753,2]
[345591642,1734373836634,-1280.8908997,0.000259,2]
[345591643,1734373836643,-500.0,0.00025999,2]
[345591644,1734373836654,-500.0,0.00025999,2]
[345591645,1734373836664,-500.0,0.00025999,2]
[345591646,1734373836675,-500.0,0.00025999,2]
[345591647,1734373836689,-521.16776195,0.00025999,2]
[345591648,1734373836698,-500.0,0.00025999,2]
[345591649,1734373836708,-500.0,0.00025999,2]
[345591650,1734373836717,-500.0,0.00025999,2]
[345591651,1734373836728,-309.93914671,0.00025999,2]
[345591652,1734373836737,-500.0,0.00025999,2]
[345591653,1734373836747,-500.0,0.00025999,2]
[345591654,1734373836757,-500.0,0.00025999,2]
[345591655,1734373836766,-500.0,0.00025999,2]
[345591656,1734373836776,-500.0,0.00025999,2]
[345591657,1734373836785,-500.0,0.00025999,2]
[345591658,1734373836795,-500.0,0.00025999,2]
[345591659,1734373836805,-500.0,0.00025999,2]
[345591660,1734373836816,-632.53299959,0.00025999,2]
[345591661,1734373836826,-500.0,0.00025999,2]
[345591662,1734373836836,-500.0,0.00025999,2]
[345591663,1734373836846,-85685.30237847,0.00026,20]
[345591664,1734373836859,-5128.9810077,0.00026,20]
[345591665,1734373836877,-13752.31855201,0.00026,20]
[345591666,1734373836896,-78875.93113183,0.00026,20]
[345591667,1734373836908,-1075.41613309,0.00026,20]
[345591768,1734373839117,-7647.71326405,0.00026,20]
[345591927,1734373840665,-8074.15720202,0.00026,20]
[345592340,1734373844749,-18139.81996626,0.00026,20]
[345592341,1734373844760,-9999.06978741,0.00026,30]
[345592342,1734373844770,-2652.35667588,0.00026,7]
[345592343,1734373844779,-240756.96048014,0.00026,3]
[345592344,1734373844790,-500.0,0.00026027,7]
[345592345,1734373844800,-500.0,0.00026027,7]
[345592346,1734373844809,-500.0,0.00026027,7]
[345592347,1734373844819,-24900.0,0.00026136,2]
[345592348,1734373844829,-4885.1429017,0.00026148,11]
[345592349,1734373844838,-250.0,0.00026148,2]
[345592350,1734373844848,-3196.4467933,0.000262,5]
[345592351,1734373844858,-294.41,0.000264,7]
[345592352,1734373844867,-220.80947916,0.000264,7]
[345592353,1734373844878,-220.8,0.000264,7]
[345592354,1734373844887,-232.11,0.000264,7]
[345592355,1734373844898,-1280.8908997,0.00026427,2]
[345592356,1734373844907,-500.0,0.00026473,2]
[345592357,1734373844917,-500.0,0.00026473,2]
[345592358,1734373844928,-249.14463147,0.00026499,2]
[345592359,1734373844938,-195360.15934152,0.000265,2]
[345592360,1734373844951,-10578.35813646,0.000265,2]
[345592361,1734373844961,-450283.33734896,0.000265,2]
[345592362,1734373844973,-31684.22773782,0.000265,2]
[345592363,1734373844985,-1165857.67156462,0.000265,2]
[345592364,1734373844997,-3063322.07309771,0.000265,2]
[345592365,1734373845007,-531.662,0.000266,2]
[345592366,1734373845017,-2154.0,0.00026759,2]
[345592367,1734373845027,-533.0,0.00026759,2]
[345592368,1734373845036,-2368.0,0.00026759,2]
[345592369,1734373845046,-195.84984155,0.000269,2]
[345592370,1734373845056,-1280.8908997,0.00026954,2]
[345592371,1734373845066,-7000.0,0.00027,20]
[345592372,1734373845076,-184.0,0.00027,2]
[345592373,1734373845086,-577.0434334,0.00027021,2]
[345592374,1734373845095,-420.0,0.00027082,2]
[345592375,1734373845105,-500.0,0.00027373,2]
[345592376,1734373845115,-500.0,0.00027397,7]
[345592377,1734373845124,-500.0,0.00027397,7]
[345592378,1734373845133,-500.0,0.00027397,7]
[345592379,1734373845142,-500.0,0.00027397,7]
[345592380,1734373845151,-500.0,0.00027397,7]
[345592381,1734373845162,-500.0,0.00027397,7]
[345592382,1734373845172,-500.0,0.00027397,7]
[345592383,1734373845182,-1000.0,0.00027397,7]
[345592384,1734373845194,-505.08720714,0.00027397,7]
[345592385,1734373845204,-500.0,0.00027397,7]
[345592386,1734373845214,-500.0,0.00027397,7]
[345592387,1734373845223,-500.0,0.00027397,7]
[345592388,1734373845232,-500.0,0.00027397,7]
[345592389,1734373845243,-624.08118293,0.00027397,2]
[345592390,1734373845253,-500.0,0.00027397,7]
[345592391,1734373845262,-210.97103102,0.00027397,7]
[345592392,1734373845273,-500.0,0.00027397,7]
[345592393,1734373845283,-500.0,0.00027397,7]
[345592394,1734373845292,-500.0,0.00027397,7]
[345592395,1734373845302,-283.31209699,0.00027397,7]
[345592396,1734373845313,-500.0,0.00027397,7]
[345592397,1734373845323,-500.0,0.00027397,7]
[345592398,1734373845335,-500.0,0.00027397,7]
[345592400,1734373845346,-282.62325441,0.00027397,7]
[345592402,1734373845356,-781.2,0.00027397,7]
[345592405,1734373845368,-500.0,0.00027397,7]
[345592407,1734373845380,-500.0,0.00027397,7]
[345592409,1734373845391,-652.55,0.00027397,7]
[345592411,1734373845402,-500.0,0.00027397,7]
[345592412,1734373845412,-500.0,0.00027397,7]
[345592414,1734373845424,-500.0,0.00027397,7]
[345592416,1734373845435,-255.027271,0.00027397,7]
[345592418,1734373845452,-500.0,0.00027397,7]
[345592419,1734373845461,-364.02616126,0.00027397,7]
[345592421,1734373845472,-500.0,0.00027397,7]
[345592422,1734373845481,-500.0,0.00027397,7]
[345592423,1734373845491,-500.0,0.00027397,7]
[345592424,1734373845502,-500.0,0.00027397,7]
[345592425,1734373845515,-500.0,0.00027397,7]
[345592426,1734373845525,-202.7108965,0.00027397,7]
[345592427,1734373845535,-500.0,0.00027397,7]
[345592428,1734373845544,-500.0,0.00027397,7]
[345592429,1734373845555,-502.10204362,0.00027397,7]
[345592430,1734373845565,-1942.51,0.00027397,7]
[345592431,1734373845574,-500.0,0.00027397,7]
[345592432,1734373845586,-549.01,0.00027397,7]
[345592433,1734373845596,-500.0,0.00027397,7]
[345592434,1734373845606,-603.55873705,0.00027397,7]
[345592435,1734373845616,-738.47,0.00027397,7]
[345592436,1734373845626,-500.0,0.00027397,7]
[345592437,1734373845636,-500.0,0.00027397,7]
[345592438,1734373845645,-502.40881107,0.00027397,7]
[345592440,1734373845655,-500.0,0.00027397,7]
[345592442,1734373845664,-500.0,0.00027397,7]
[345592444,1734373845673,-500.0,0.00027397,7]
[345592446,1734373845683,-500.0,0.00027397,7]
[345592448,1734373845696,-452.1992929,0.00027397,7]
[345592470,1734373845876,-500.0,0.00027397,7]
[345592472,1734373845886,-500.0,0.00027397,7]
[345592474,1734373845896,-500.0,0.00027397,7]
[345592476,1734373845906,-424.86035152,0.00027397,7]
[345592478,1734373845917,-510.44211641,0.00027397,7]
[345592481,1734373845926,-500.0,0.00027397,7]
[345592484,1734373845936,-683.4,0.00027397,7]
[345592487,1734373845949,-506.61911136,0.00027397,7]
[345592490,1734373845959,-500.0,0.00027397,7]
[345592493,1734373845968,-500.0,0.00027397,7]
[345592496,1734373845978,-965.75,0.00027397,7]
[345592499,1734373845987,-500.0,0.00027397,7]
[345592501,1734373845997,-2608.94,0.00027397,7]
[345592502,1734373846007,-503.05047602,0.00027397,7]
[345592503,1734373846016,-615.23,0.00027397,7]
[345592504,1734373846025,-864.53,0.00027397,7]
[345592505,1734373846035,-500.0,0.00027397,7]
[345592506,1734373846045,-500.0,0.00027397,7]
[345592507,1734373846055,-501.28668324,0.00027397,7]
[345592509,1734373846064,-500.0,0.00027397,7]
[345592510,1734373846073,-500.0,0.00027397,7]
[345592511,1734373846083,-503.64487229,0.00027397,7]
[345592512,1734373846094,-512.24222871,0.00027397,7]
[345592513,1734373846104,-500.0,0.00027397,7]
[345592515,1734373846113,-938.96,0.00027397,7]
[345592516,1734373846123,-501.89897822,0.00027397,7]
[345592517,1734373846133,-506.55125742,0.00027397,7]
[345592518,1734373846142,-501.12807712,0.00027397,7]
[345592519,1734373846152,-168.02,0.00027397,7]
[345592520,1734373846162,-503.56348278,0.00027397,7]
[345592521,1734373846171,-563.36,0.00027397,7]
[345592522,1734373846181,-505.1567009,0.00027397,7]
[345592523,1734373846193,-500.0,0.00027397,7]
[345592525,1734373846205,-502.6126415,0.00027397,7]
[345592527,1734373846214,-504.07667657,0.00027397,7]
[345592529,1734373846224,-502.30187072,0.00027397,7]
[345592531,1734373846234,-505.38685492,0.00027397,7]
[345592533,1734373846242,-502.30082414,0.00027397,7]
[345592535,1734373846252,-500.0,0.00027397,7]
[345592537,1734373846261,-500.0,0.00027397,7]
[345592539,1734373846271,-502.23468975,0.00027397,7]
[345592541,1734373846280,-500.0,0.00027397,7]
[345592543,1734373846291,-501.70061613,0.00027397,7]
[345592544,1734373846300,-281.62180116,0.00027397,7]
[345592545,1734373846309,-504.23845061,0.00027397,7]
[345592546,1734373846319,-500.0,0.00027397,7]
[345592547,1734373846329,-500.0,0.00027397,7]
[345592548,1734373846339,-500.0,0.00027397,7]
[345592549,1734373846348,-505.47923096,0.00027397,7]
[345592550,1734373846358,-504.7159423,0.00027397,7]
[345592551,1734373846367,-627.07539368,0.00027397,7]
[345592552,1734373846376,-1710.74,0.00027397,7]
[345592553,1734373846385,-500.0,0.00027397,7]
[345592554,1734373846395,-503.58147177,0.00027397,7]
[345592555,1734373846405,-188.66672715,0.00027397,7]
[345592557,1734373846414,-500.57159208,0.00027397,7]
[345592559,1734373846424,-503.72622432,0.00027397,7]
[345592561,1734373846433,-503.3912217,0.00027397,7]
[345592563,1734373846444,-227.57025515,0.00027397,7]
[345592565,1734373846454,-502.38289523,0.00027397,7]
[345592567,1734373846465,-504.81937639,0.00027397,7]
[345592568,1734373846474,-500.0,0.00027397,7]
[345592570,1734373846484,-502.62402525,0.00027397,7]
[345592572,1734373846494,-500.0,0.00027397,7]
[345592574,1734373846505,-502.60549531,0.00027397,7]
[345592576,1734373846515,-855.63,0.00027397,7]
[345592578,1734373846525,-500.0,0.00027397,7]
[345592579,1734373846534,-224.1675335,0.00027397,7]
[345592584,1734373846578,-91.75103325,0.00027397,7]
[345592585,1734373846589,-500.0,0.00027397,7]
[345592586,1734373846599,-499.65854751,0.00027397,7]
[345592587,1734373846608,-500.0,0.00027397,7]
[345592588,1734373846617,-503.93266538,0.00027397,7]
[345592589,1734373846627,-509.81021478,0.00027397,7]
[345592590,1734373846637,-2025.4,0.00027397,2]
[345592591,1734373846647,-500.0,0.00027397,7]
[345592592,1734373846658,-500.0,0.00027397,7]
[345592593,1734373846668,-1166.87,0.00027397,7]
[345592594,1734373846680,-500.0,0.00027397,7]
[345592595,1734373846689,-500.0,0.00027397,7]
[345592596,1734373846701,-500.0,0.00027397,7]
[345592597,1734373846710,-835.88,0.00027397,7]
[345592598,1734373846720,-500.0,0.00027397,7]
[345592599,1734373846729,-502.86741157,0.00027397,7]
[345592600,1734373846739,-502.7328526,0.00027397,7]
[345592601,1734373846749,-501.44422984,0.00027397,7]
[345592602,1734373846759,-501.74049719,0.00027397,7]
[345592603,1734373846768,-506.13897432,0.00027397,7]
[345592604,1734373846778,-1056.72,0.00027397,7]
[345592605,1734373846787,-500.0,0.00027397,7]
[345592606,1734373846796,-500.0,0.00027397,7]
[345592607,1734373846806,-500.0,0.00027397,7]
[345592608,1734373846816,-809.72,0.00027397,7]
[345592609,1734373846825,-500.0,0.00027397,7]
[345592610,1734373846835,-500.0,0.00027397,7]
[345592611,1734373846844,-500.0,0.00027397,7]
[345592612,1734373846853,-500.0,0.00027397,7]
[345592613,1734373846864,-500.0,0.00027397,7]
[345592614,1734373846874,-500.0,0.00027397,7]
[345592615,1734373846885,-500.0,0.00027397,7]
[345592616,1734373846895,-2441.19,0.00027397,7]
[345592617,1734373846904,-500.0,0.00027397,7]
[345592618,1734373846918,-1343.92,0.00027397,7]
[345592619,1734373846927,-500.0,0.00027397,7]
[345592620,1734373846937,-500.0,0.00027397,7]
[345592621,1734373846948,-500.0,0.00027397,7]
[345592622,1734373846958,-500.0,0.00027397,7]
[345592623,1734373846968,-500.0,0.00027397,7]
[345592624,1734373846978,-516.5035151,0.00027397,7]
[345592625,1734373846988,-1000.0,0.00027397,2]
[345592626,1734373846998,-500.0,0.00027397,7]
[345592627,1734373847008,-500.0,0.00027397,7]
[345592628,1734373847018,-500.0,0.00027397,7]
[345592629,1734373847029,-506.03387085,0.00027397,7]
[345592630,1734373847038,-500.0,0.00027397,7]
[345592631,1734373847048,-500.0,0.00027397,7]
[345592632,1734373847057,-501.14957545,0.00027397,7]
[345592633,1734373847067,-500.0,0.00027397,7]
[345592634,1734373847076,-500.0,0.00027397,7]
[345592635,1734373847086,-1017.45878788,0.00027397,7]
[345592636,1734373847096,-500.74514755,0.00027397,7]
[345592637,1734373847105,-500.0,0.00027397,7]
[345592638,1734373847115,-500.0,0.00027397,7]
[345592639,1734373847124,-501.65514152,0.00027397,7]
[345592640,1734373847133,-229.11721888,0.00027397,7]
[345592641,1734373847143,-669.81,0.00027397,7]
[345592642,1734373847153,-500.0,0.00027397,7]
[345592643,1734373847163,-1088.46,0.00027397,7]
[345592644,1734373847173,-500.0,0.00027397,7]
[345592645,1734373847182,-501.15342139,0.00027397,7]
[345592646,1734373847193,-501.79564149,0.00027397,7]
[345592647,1734373847203,-502.53004187,0.00027397,7]
[345592648,1734373847212,-500.0,0.00027397,7]
[345592649,1734373847221,-579.63,0.00027397,7]
[345592650,1734373847231,-501.65462542,0.00027397,7]
[345592651,1734373847241,-500.0,0.00027397,7]
[345592652,1734373847251,-1538.31,0.00027397,7]
[345592653,1734373847261,-500.0,0.00027397,7]
[345592654,1734373847270,-500.98404456,0.00027397,7]
[345592655,1734373847280,-500.0,0.00027397,7]
[345592656,1734373847290,-500.0,0.00027397,7]
[345592657,1734373847299,-740.26,0.00027397,7]
[345592658,1734373847310,-500.0,0.00027397,7]
[345592659,1734373847320,-500.0,0.00027397,7]
[345592660,1734373847330,-500.0,0.00027397,7]
[345592661,1734373847339,-500.0,0.00027397,7]
[345592662,1734373847349,-500.0,0.00027397,7]
[345592663,1734373847359,-501.2076488,0.00027397,7]
[345592664,1734373847369,-500.0,0.00027397,7]
[345592665,1734373847378,-500.0,0.00027397,2]
[345592666,1734373847388,-448.29548376,0.00027397,7]
[345592667,1734373847398,-501.51146595,0.00027397,7]
[345592668,1734373847408,-500.0,0.00027397,7]
[345592669,1734373847418,-1022.87,0.00027397,7]